fUST/lending_fUST_20240220
["ID","MTS","AMOUNT","RATE_DAILY","PERIOD"]
[314590655,1708437049754,-500.0,0.00021917,2]
[314590657,1708437049763,-176.16786775,0.00021917,2]
[314590660,1708437049774,-352.36213225,0.00021917,2]
[314590662,1708437049783,-500.0,0.00021917,2]
[314590664,1708437049792,-500.0,0.00021917,2]
[314590666,1708437049801,-224.47984607,0.00021917,2]
[314590668,1708437049812,-275.52015393,0.00021917,2]
[314590670,1708437049821,-248.97984607,0.00021917,2]
[314591351,1708437739999,10220.0,0.0003,120]
[314591352,1708437910842,863.6525713,0.00018492,2]
[314591361,1708438040401,24900.0,0.00018702,2]
[314591432,1708438232885,-1589.90722971,0.00019328,2]
[314591434,1708438232894,-774.09903881,0.00019329,2]
[314591436,1708438232904,-524.59840674,0.00019817,2]
[314591438,1708438232915,-155.12254681,0.00020328,2]
[314591440,1708438232925,-258.0,0.00020328,2]
[314591442,1708438232934,-2369.59194379,0.00020329,3]
[314591444,1708438232946,-15031.59805621,0.00020329,3]
[314591446,1708438232955,-16358.51,0.00020329,3]
[314591448,1708438232965,-13632.09,0.00020329,3]
[314591450,1708438232974,-155.12254681,0.00020335,2]
[314591452,1708438232984,-19765.87815677,0.00020336,2]
[314591454,1708438232993,-3151.95469614,0.00020337,2]
[314591523,1708438238533,-259.9792,0.00020337,2]
[314591526,1708438238548,-658.93879695,0.00020337,2]
[314591532,1708438238605,-929.12730691,0.00020337,2]
[314591534,1708438238615,-1437.02499236,0.00020339,2]
[314591537,1708438238627,-1085.58058224,0.00020339,2]
[314591538,1708438238638,-5061.87444878,0.00020339,2]
[314591539,1708438238649,-4048.03404607,0.00020339,2]
[314591853,1708438241987,-357.81282731,0.00020339,2]
[314591859,1708438242048,-2165.69190042,0.00020339,2]
[314591861,1708438242059,-8295.54517132,0.00020339,2]
[314591863,1708438242070,-843.94215077,0.00020339,2]
[314591865,1708438242081,-3057.71456668,0.00020339,2]
[314591867,1708438242092,-5000.0,0.00020339,2]
[314591869,1708438242101,-2354.32536311,0.00020339,2]
[314591871,1708438242110,-2684.56696198,0.00020339,2]
[314591992,1708438243558,-1027.33327999,0.00020339,2]
[314591995,1708438243570,-1102.9999997,0.00020339,2]
[314592033,1708438243918,-185.09975833,0.00020339,2]
[314592035,1708438243927,-2811.90024167,0.00020339,2]
[314592037,1708438243938,-672.67694203,0.00020339,2]
[314592039,1708438243950,-268.24199987,0.00020339,2]
[314592041,1708438243961,-1247.18081643,0.00020339,2]
[314592043,1708438243971,-5304.461513,0.000209,2]
[314592045,1708438243980,-654.73878814,0.00021,2]
[314592047,1708438243988,-351.8486876,0.00021,2]
[314592049,1708438243997,-153.0,0.0002137,2]
[314592051,1708438244006,-399.9784959,0.0002137,2]
[314592053,1708438244016,-306.8809035,0.0002137,2]
[314592055,1708438244025,-225.11,0.0002157,3]
[314592057,1708438244034,-675.38,0.0002157,3]
[314592059,1708438244044,-47148.86105393,0.0002158,2]
[314592061,1708438244055,-1382.19494591,0.0002158,2]
[314592064,1708438244066,-1095.7986283,0.0002158,2]
[314592310,1708438246599,-466.19491799,0.00020327,2]
[314592312,1708438246609,-373.14537186,0.0002158,2]
[314592314,1708438246619,-1094.65710847,0.00021606,4]
[314592317,1708438246642,-1094.6,0.00021606,4]
[314593951,1708438841765,381.97369426,0.0001897,3]
[314593954,1708439189318,151.62583838,0.00018875,2]
[314593958,1708439332639,156.6993804,0.00018943,2]
[314593998,1708439370638,154.87010445,0.00018848,2]
[314594007,1708439421815,18391.17841121,0.00018038,2]
[314594008,1708439421848,4280.49325139,0.00018038,2]
[314594041,1708439435433,-850.86,0.00019023,2]
[314594043,1708439435477,-739.04722971,0.00019023,2]
[314594045,1708439435487,-281.18949915,0.00019024,2]
[314594048,1708439435497,-408.4969776,0.00019025,2]
[314594086,1708439437735,-682.79805144,0.00019025,2]
[314594088,1708439437745,-310.79661199,0.00019026,2]
[314594090,1708439437755,-300.0,0.00019041,2]
[314594092,1708439437765,-347.098415,0.00019166,2]
[314594094,1708439437774,-176.071033,0.00019178,2]
[314594096,1708439437784,-349.73227116,0.0001948,2]
[314594098,1708439437793,-155.1604433,0.0002,2]
[314594100,1708439437803,-125.02217411,0.00020326,3]
[314594103,1708439437824,-13114.63782589,0.00020326,3]
[314594105,1708439437833,-948.96258638,0.00020335,2]
[314594393,1708439441060,-3008.487,0.00020334,2]
[314594395,1708439441071,-14992.03766948,0.00020334,2]
[314594398,1708439441083,-18816.91557039,0.00020335,2]
[314594400,1708439441092,-12210.79,0.00020336,3]
[314594401,1708439441102,-19065.11,0.00020336,3]
[314594402,1708439441112,-15887.6,0.00020336,3]
[314594403,1708439441125,-7289.94125879,0.00020357,2]
[314594404,1708439441134,-20417.86800336,0.0002036,2]
[314594405,1708439441143,-12713.6655725,0.00020361,2]
[314594406,1708439441152,-168.16609738,0.00020363,2]
[314594407,1708439441161,-620.00066368,0.00020922,2]
[314594408,1708439441170,-153.0,0.0002137,2]
[314594409,1708439441179,-306.0,0.0002137,2]
[314594410,1708439441189,-450.22,0.00021577,3]
[314594411,1708439441198,-50000.0,0.00021587,2]
[314594412,1708439441207,-156.6993804,0.00021603,2]
[314594413,1708439441216,-12798.00727783,0.00021817,2]
[314594414,1708439441225,-1915.3292534,0.00021817,2]
[314594415,1708439441234,-356.9,0.00021891,4]
[314594416,1708439441244,-2000.0,0.000219,2]
[314594417,1708439441253,-166.57013905,0.00021915,2]
[314594418,1708439441263,-1297.27899278,0.00021915,2]
[314594420,1708439441271,-388.46296932,0.00021915,2]
[314594421,1708439441281,-703.66780339,0.00021915,2]
[314594423,1708439441291,-224.97072102,0.00021915,2]
[314594425,1708439441300,-243.74685673,0.00021916,2]
[314594427,1708439441309,-500.0,0.00021916,2]
[314594428,1708439441319,-210.61773633,0.00021916,2]
[314594430,1708439441328,-174.36800835,0.00021916,2]
[314594431,1708439441337,-248.25838849,0.00021916,2]
[314594432,1708439441346,-500.0,0.00021916,2]
[314594433,1708439441355,-500.0,0.00021916,2]
[314594434,1708439441364,-500.0,0.00021916,2]
[314594435,1708439441376,-500.0,0.00021916,2]
[314594436,1708439441385,-500.0,0.00021916,2]
[314594437,1708439441395,-311.22245221,0.00021916,2]
[314594439,1708439441404,-500.0,0.00021916,2]
[314594441,1708439441413,-500.0,0.00021916,2]
[314594443,1708439441422,-500.0,0.00021916,2]
[314594445,1708439441431,-500.0,0.00021916,2]
[314594447,1708439441439,-500.0,0.00021916,2]
[314594449,1708439441448,-462.72975221,0.00021916,2]
[314594451,1708439441457,-500.0,0.00021916,2]
[314594453,1708439441466,-500.0,0.00021916,2]
[314594455,1708439441475,-500.0,0.00021916,2]
[314594456,1708439441484,-500.0,0.00021916,2]
[314594457,1708439441494,-500.0,0.00021916,2]
[314594459,1708439441503,-500.0,0.00021916,2]
[314594461,1708439441512,-500.0,0.00021916,2]
[314594463,1708439441521,-500.0,0.00021916,2]
[314594465,1708439441530,-500.0,0.00021916,2]
[314594467,1708439441540,-500.0,0.00021916,2]
[314594469,1708439441549,-500.0,0.00021916,2]
[314594471,1708439441558,-500.0,0.00021916,2]
[314594473,1708439441567,-500.0,0.00021916,2]
[314594475,1708439441576,-500.0,0.00021916,2]
[314594477,1708439441585,-500.0,0.00021916,2]
[314594479,1708439441594,-500.0,0.00021916,2]
[314594481,1708439441603,-500.0,0.00021916,2]
[314594483,1708439441612,-500.0,0.00021916,2]
[314594485,1708439441623,-500.0,0.00021916,2]
[314594487,1708439441632,-500.0,0.00021916,2]
[314594489,1708439441642,-500.0,0.00021916,2]
[314594491,1708439441651,-500.0,0.00021916,2]
[314594493,1708439441660,-500.0,0.00021916,2]
[314594495,1708439441669,-500.0,0.00021916,2]
[314594497,1708439441678,-500.0,0.00021916,2]
[314594499,1708439441687,-500.0,0.00021916,2]
[314594501,1708439441696,-500.0,0.00021916,2]
[314594503,1708439441706,-500.0,0.00021916,2]
[314594505,1708439441714,-500.0,0.00021916,2]
[314594507,1708439441724,-500.0,0.00021916,2]
[314594509,1708439441733,-550.0,0.00021916,2]
[314594511,1708439441742,-500.0,0.00021916,2]
[314594513,1708439441752,-500.0,0.00021916,2]
[314594515,1708439441762,-500.0,0.00021916,2]
[314594517,1708439441771,-500.0,0.00021916,2]
[314594519,1708439441780,-500.0,0.00021916,2]
[314594521,1708439441789,-500.0,0.00021916,2]
[314594523,1708439441798,-305.8189458,0.00021916,2]
[314594525,1708439441807,-500.0,0.00021916,2]
[314594527,1708439441817,-500.0,0.00021916,2]
[314594529,1708439441825,-500.0,0.00021916,2]
[314594531,1708439441834,-220.88356828,0.00021916,2]
[314594533,1708439441844,-500.0,0.00021916,2]
[314594535,1708439441853,-500.0,0.00021916,2]
[314594537,1708439441862,-500.0,0.00021916,2]
[314594539,1708439441875,-500.0,0.00021916,2]
[314594541,1708439441884,-500.0,0.00021917,2]
[314594543,1708439441894,-500.0,0.00021917,2]
[314594545,1708439441903,-500.0,0.00021917,2]
[314594547,1708439441913,-500.0,0.00021917,2]
[314594549,1708439441922,-1264.61,0.00021917,2]
[314594551,1708439441932,-576.52,0.00021917,2]
[314594553,1708439441943,-500.0,0.00021917,2]
[314594555,1708439441953,-841.24,0.00021917,2]
[314594557,1708439441964,-500.0,0.00021917,2]
[314594559,1708439441975,-500.0,0.00021917,2]
[314594561,1708439441985,-1484.42,0.00021917,2]
[314594562,1708439441995,-500.0,0.00021917,2]
[314594565,1708439442011,-500.0,0.00021917,2]
[314594567,1708439442021,-450.66348455,0.00021917,2]
[314594569,1708439442038,-500.0,0.00021917,2]
[314594571,1708439442048,-500.0,0.00021917,2]
[314594573,1708439442057,-500.0,0.00021917,2]
[314594575,1708439442066,-500.0,0.00021917,2]
[314594577,1708439442075,-500.0,0.00021917,2]
[314594579,1708439442085,-200.0,0.00021917,2]
[314594581,1708439442095,-500.0,0.00021917,2]
[314594583,1708439442104,-693.37,0.00021917,2]
[314594585,1708439442114,-500.0,0.00021917,2]
[314594587,1708439442130,-478.9119605,0.00021917,2]
[314594590,1708439442140,-500.0,0.00021917,2]
[314594592,1708439442150,-235.35725535,0.00021917,2]
[314594594,1708439442160,-500.0,0.00021917,2]
[314594596,1708439442171,-500.0,0.00021917,2]
[314594599,1708439442181,-500.0,0.00021917,2]
[314594601,1708439442191,-500.0,0.00021917,2]
[314594605,1708439442201,-500.0,0.00021917,2]
[314594608,1708439442211,-500.0,0.00021917,2]
[314594611,1708439442221,-500.0,0.00021917,2]
[314594614,1708439442230,-612.66,0.00021917,2]
[314594616,1708439442240,-500.0,0.00021917,2]
[314594619,1708439442249,-500.0,0.00021917,2]
[314594620,1708439442259,-569.71,0.00021917,2]
[314594622,1708439442269,-580.89,0.00021917,2]
[314594625,1708439442278,-1193.56,0.00021917,2]
[314594627,1708439442287,-500.0,0.00021917,2]
[314594629,1708439442296,-500.0,0.00021917,2]
[314594632,1708439442305,-500.0,0.00021917,2]
[314594634,1708439442314,-509.92662312,0.00021917,2]
[314594638,1708439442322,-500.0,0.00021917,2]
[314594642,1708439442332,-500.0,0.00021917,2]
[314594646,1708439442342,-500.0,0.00021917,2]
[314594650,1708439442351,-500.0,0.00021917,2]
[314594654,1708439442361,-2591.7,0.00021917,2]
[314594657,1708439442375,-512.68,0.00021917,2]
[314594660,1708439442384,-500.0,0.00021917,2]
[314594663,1708439442394,-500.0,0.00021917,2]
[314594665,1708439442404,-500.0,0.00021917,2]
[314594667,1708439442413,-506.51,0.00021917,2]
[314594669,1708439442422,-524.59,0.00021917,2]
[314594671,1708439442432,-672.46,0.00021917,2]
[314594674,1708439442442,-1286.8,0.00021917,2]
[314594676,1708439442451,-500.0,0.00021917,2]
[314594677,1708439442460,-500.0,0.00021917,2]
[314594679,1708439442470,-500.0,0.00021917,2]
[314594681,1708439442479,-500.0,0.00021917,2]
[314594683,1708439442488,-500.0,0.00021917,2]
[314594685,1708439442497,-500.0,0.00021917,2]
[314594687,1708439442507,-500.0,0.00021917,2]
[314594689,1708439442516,-500.0,0.00021917,2]
[314594691,1708439442525,-500.0,0.00021917,2]
[314594693,1708439442535,-514.95706502,0.00021917,2]
[314594695,1708439442544,-500.0,0.00021917,2]
[314594697,1708439442554,-774.88,0.00021917,2]
[314594699,1708439442563,-500.0,0.00021917,2]
[314594701,1708439442572,-500.0,0.00021917,2]
[314594703,1708439442581,-500.0,0.00021917,2]
[314594705,1708439442590,-500.0,0.00021917,2]
[314594707,1708439442599,-151.0,0.00021917,2]
[314594709,1708439442608,-500.0,0.00021917,2]
[314594711,1708439442619,-500.0,0.00021917,2]
[314594712,1708439442628,-500.0,0.00021917,2]
[314594713,1708439442637,-500.0,0.00021917,2]
[314594714,1708439442646,-500.0,0.00021917,2]
[314594715,1708439442655,-500.0,0.00021917,2]
[314594716,1708439442664,-500.0,0.00021917,2]
[314594717,1708439442673,-500.0,0.00021917,2]
[314594718,1708439442682,-500.0,0.00021917,2]
[314594720,1708439442691,-500.0,0.00021917,2]
[314594722,1708439442700,-647.71,0.00021917,2]
[314594724,1708439442709,-500.0,0.00021917,2]
[314594726,1708439442719,-500.0,0.00021917,2]
[314594728,1708439442728,-500.0,0.00021917,2]
[314594730,1708439442737,-500.0,0.00021917,2]
[314594732,1708439442747,-500.0,0.00021917,2]
[314594734,1708439442757,-500.0,0.00021917,2]
[314594736,1708439442767,-500.0,0.00021917,2]
[314594737,1708439442776,-500.0,0.00021917,2]
[314594739,1708439442786,-584.26,0.00021917,2]
[314594741,1708439442795,-500.0,0.00021917,2]
[314594743,1708439442804,-500.0,0.00021917,2]
[314594746,1708439442814,-639.17776744,0.00021917,2]
[314594749,1708439442823,-500.0,0.00021917,2]
[314594751,1708439442833,-1304.15,0.00021917,2]
[314594752,1708439442842,-535.53,0.00021917,2]
[314594754,1708439442851,-500.0,0.00021917,2]
[314594757,1708439442860,-5744.09,0.00021917,2]
[314594759,1708439442872,-500.0,0.00021917,2]
[314594761,1708439442881,-500.0,0.00021917,2]
[314594763,1708439442891,-2656.15,0.00021917,2]
[314594765,1708439442900,-500.0,0.00021917,2]
[314594767,1708439442909,-500.0,0.00021917,2]
[314594769,1708439442918,-500.0,0.00021917,2]
[314594771,1708439442928,-500.0,0.00021917,2]
[314594773,1708439442937,-500.0,0.00021917,2]
[314594775,1708439442947,-1686.43,0.00021917,2]
[314594777,1708439442956,-500.0,0.00021917,2]
[314594778,1708439442966,-527.99959248,0.00021917,2]
[314594779,1708439442976,-500.0,0.00021917,2]
[314594780,1708439442986,-500.0,0.00021917,2]
[314594781,1708439442995,-500.0,0.00021917,2]
[314594782,1708439443008,-506.73604209,0.00021917,2]
[314594783,1708439443018,-500.0,0.00021917,2]
[314594784,1708439443027,-545.57,0.00021917,2]
[314594785,1708439443036,-974.4,0.00021917,2]
[314594786,1708439443045,-500.0,0.00021917,2]
[314594787,1708439443054,-2787.14,0.00021917,2]
[314594788,1708439443063,-613.04268079,0.00021917,2]
[314594789,1708439443072,-833.33,0.00021917,2]
[314594790,1708439443081,-500.0,0.00021917,2]
[314594791,1708439443090,-500.0,0.00021917,2]
[314594792,1708439443099,-228.96648004,0.00021917,2]
[314594793,1708439443108,-559.01,0.00021917,2]
[314594794,1708439443119,-500.0,0.00021917,2]
[314594809,1708439443277,-477.21577189,0.00021917,2]
[314594812,1708439443287,-523.21075762,0.00021917,2]
[314594814,1708439443297,-532.26,0.00021917,2]
[314594816,1708439443306,-500.0,0.00021917,2]
[314594818,1708439443315,-671.49,0.00021917,2]
[314594819,1708439443324,-500.0,0.00021917,2]
[314594821,1708439443334,-500.0,0.00021917,2]
[314594823,1708439443342,-500.0,0.00021917,2]
[314594825,1708439443351,-500.0,0.00021917,2]
[314594827,1708439443361,-500.0,0.00021917,2]
[314594829,1708439443372,-578.88,0.00021917,2]
[314594831,1708439443381,-3560.22,0.00021917,2]
[314594833,1708439443390,-597.61,0.00021917,2]
[314594834,1708439443399,-500.0,0.00021917,2]
[314594835,1708439443408,-500.0,0.00021917,2]
[314594836,1708439443418,-500.0,0.00021917,2]
[314594837,1708439443427,-500.0,0.00021917,2]
[314594839,1708439443436,-500.0,0.00021917,2]
[314594841,1708439443445,-500.0,0.00021917,2]
[314594843,1708439443454,-534.07,0.00021917,2]
[314594845,1708439443463,-505.16096815,0.00021917,2]
[314594847,1708439443472,-413.2365449,0.00021917,2]
[314594848,1708439443481,-500.0,0.00021917,2]
[314594849,1708439443490,-500.0,0.00021917,2]
[314594850,1708439443499,-602.08,0.00021917,2]
[314594851,1708439443508,-500.0,0.00021917,2]
[314594852,1708439443518,-500.0,0.00021917,2]
[314594853,1708439443527,-500.0,0.00021917,2]
[314594855,1708439443536,-500.0,0.00021917,2]
[314594857,1708439443545,-578.1,0.00021917,2]
[314594859,1708439443556,-500.0,0.00021917,2]
[314594861,1708439443566,-500.0,0.00021917,2]
[314594863,1708439443575,-500.0,0.00021917,2]
[314594865,1708439443585,-500.0,0.00021917,2]
[314594867,1708439443595,-500.0,0.00021917,2]
[314594869,1708439443604,-500.0,0.00021917,2]
[314594871,1708439443614,-500.0,0.00021917,2]
[314594873,1708439443627,-1172.99,0.00021917,2]
[314594875,1708439443637,-500.0,0.00021917,2]
[314594877,1708439443647,-500.0,0.00021917,2]
[314594879,1708439443657,-500.0,0.00021917,2]
[314594881,1708439443667,-500.0,0.00021917,2]
[314594883,1708439443676,-729.29,0.00021917,2]
[314594885,1708439443686,-1461.11,0.00021917,2]
[314594887,1708439443695,-1369.27,0.00021917,2]
[314594889,1708439443704,-284.39594045,0.00021917,2]
[314594891,1708439443713,-500.0,0.00021917,2]
[314594893,1708439443724,-500.0,0.00021917,2]
[314594895,1708439443733,-1721.77,0.00021917,2]
[314594897,1708439443743,-5000.014229,0.00021917,2]
[314594899,1708439443754,-5000.014229,0.00021917,2]
[314594901,1708439443763,-5000.014229,0.00021917,2]
[314594903,1708439443773,-5000.014229,0.00021917,2]
[314594905,1708439443783,-5000.014229,0.00021917,2]
[314594907,1708439443792,-5000.014229,0.00021917,2]
[314594908,1708439443801,-500.0,0.00021917,2]
[314594911,1708439443811,-5000.014229,0.00021917,2]
[314594913,1708439443820,-5000.014229,0.00021917,2]
[314594914,1708439443829,-5000.014229,0.00021917,2]
[314594917,1708439443839,-5000.014229,0.00021917,2]
[314594918,1708439443848,-5000.014229,0.00021917,2]
[314594920,1708439443857,-5000.014229,0.00021917,2]
[314594922,1708439443867,-500.0,0.00021917,2]
[314594924,1708439443878,-500.0,0.00021917,2]
[314594926,1708439443888,-2070.07,0.00021917,2]
[314594928,1708439443897,-500.0,0.00021917,2]
[314594930,1708439443907,-548.59346291,0.00021917,2]
[314594932,1708439443916,-181.4146153,0.00021917,2]
[314594934,1708439443925,-629.41,0.00021917,2]
[314594936,1708439443934,-500.0,0.00021917,2]
[314594938,1708439443944,-500.0,0.00021917,2]
[314594940,1708439443953,-42051.90825573,0.00021917,2]
[314594985,1708439444378,-384.61233756,0.0002033,2]
[314594987,1708439444389,-293.35778126,0.0002033,2]
[314595889,1708440019338,92796.667672,0.00021,10]
[314595898,1708440258974,-3364.23737558,0.00021,10]
[314595899,1708440397081,250.0,0.00018838,2]
[314595900,1708440501874,9873.8307564,0.00018838,2]
[314595948,1708440632007,-258.99717666,0.0001906,2]
[314595950,1708440632017,-1589.90722971,0.00019061,2]
[314595952,1708440632031,-261.63646538,0.00019069,2]
[314595955,1708440632041,-159.92692077,0.00019072,2]
[314595956,1708440632050,-169.133355,0.00019178,2]
[314595958,1708440632060,-233.15484744,0.00019817,2]
[314595960,1708440632069,-156.6993804,0.00020272,2]
[314595962,1708440632079,-1698.60711488,0.00020319,2]
[314595965,1708440632090,-2106.33735193,0.00020319,2]
[314595967,1708440632105,-15960.93368996,0.00020319,2]
[314595969,1708440632114,-5000.0,0.00020372,2]
[314595971,1708440632123,-10251.8353184,0.00020372,2]
[314595974,1708440632133,-5000.0,0.00020372,2]
[314595976,1708440632142,-2794.47748254,0.00020372,2]
[314595978,1708440632151,-55251.51359034,0.00021408,2]
[314596093,1708440639093,-5390.2387327,0.00020372,2]
[314596095,1708440639103,-25337.53231011,0.00021408,2]
[314596097,1708440639115,-10810.97916923,0.00021408,2]
[314596099,1708440639124,-3899.45332585,0.00021416,3]
[314596104,1708440639154,-466.96841606,0.00021416,3]
[314596339,1708440641253,-1880.00825809,0.00021416,3]
[314596341,1708440641262,-716.03037046,0.00021416,3]
[314596343,1708440641274,-10063.08962954,0.00021416,3]
[314596345,1708440641286,-8982.6,0.00021416,3]
[314596347,1708440641296,-10358.05706016,0.00021426,2]
[314596350,1708440641308,-991.39679073,0.00021426,2]
[314596352,1708440641319,-6267.55355621,0.00021426,2]
[314596354,1708440641331,-3606.27720025,0.00021426,2]
[314596356,1708440641342,-312.2633,0.00021426,2]
[314596547,1708440643126,-1184.47103787,0.00021426,2]
[314596549,1708440643137,-4412.0,0.00021426,2]
[314596551,1708440643149,-1202.62528171,0.00021426,2]
[314596554,1708440643164,-608.53492682,0.00021426,2]
[314596853,1708440646046,-2211.27906765,0.00021426,2]
[314596855,1708440646059,-479.27306019,0.00021426,2]
[314596857,1708440646071,-8069.11818847,0.00021426,2]
[314596859,1708440646082,-971.51677344,0.00021487,2]
[314596861,1708440646091,-200.4151623,0.000215,2]
[314596863,1708440646101,-2100.07681554,0.0002161,2]
[314597809,1708440937161,1000.0,0.00021,21]
[314597810,1708441449943,-155.13962566,0.00019325,2]
[314597811,1708441449967,-155.43656496,0.00019326,2]
[314597812,1708441449990,-2397.5439735,0.00019435,2]
[314597813,1708441450013,-258.0,0.00019871,2]
[314597814,1708441450037,-1893.87983588,0.00019872,2]
[314597816,1708441588341,-155.12254681,0.00019558,2]
[314597817,1708441588364,-24900.0,0.00019559,2]
[314597818,1708441588384,-925.537554,0.00019871,2]
[314597819,1708441588403,-925.537554,0.00019871,2]
[314597820,1708441588424,-925.537554,0.00019871,2]
[314597821,1708441588444,-925.537554,0.00019871,2]
[314597822,1708441588464,-381.4773363,0.00019991,2]
[314597823,1708441589013,925.537554,0.0001999,2]
[314597855,1708441791315,228.549973,0.0001998,2]
[314597877,1708441832226,-155.12254681,0.00020271,2]
[314597879,1708441832239,-2781.77697995,0.00020272,2]
[314597881,1708441832253,-3411.68160048,0.00020272,2]
[314597883,1708441832263,-703.67102993,0.00020371,2]
[314597886,1708441832274,-25342.66667442,0.00020377,2]
[314597888,1708441832285,-893.64370789,0.0002038,2]
[314597890,1708441832295,-1152.56312329,0.0002087,2]
[314597892,1708441832306,-196.76625051,0.000209,2]
[314597894,1708441832316,-50.26198598,0.0002098,3]
[314598229,1708441838113,-5117.10801402,0.0002098,3]
[314598230,1708441838122,-4846.86713434,0.00020988,2]
[314598231,1708441838135,-6392.86087435,0.00020988,2]
[314598250,1708441841382,-1218.12413777,0.00020988,2]
[314598259,1708441841454,-3778.09979773,0.00020988,2]
[314598261,1708441841464,-198.97,0.0002099,3]
[314598263,1708441841473,-596.96,0.0002099,3]
[314598265,1708441841483,-9021.14,0.0002099,3]
[314598267,1708441841493,-7517.62,0.0002099,3]
[314598269,1708441841506,-471.81275973,0.00020998,2]
[314598271,1708441841516,-404.12514188,0.00020999,2]
[314598273,1708441841527,-500.0,0.00020999,2]
[314598275,1708441841537,-500.0,0.00020999,2]
[314598277,1708441841546,-500.0,0.00020999,2]
[314598279,1708441841555,-500.0,0.00020999,2]
[314598281,1708441841565,-623.36133205,0.00020999,2]
[314598283,1708441841575,-19373.41096866,0.00021,4]
[314598442,1708441843169,-54579.211583,0.00021,4]
[314598444,1708441843181,-416.74963769,0.00021,4]
[314598447,1708441843192,-2655.48398633,0.00021,4]
[314598512,1708441879495,-2365.90746346,0.00021,7]
[314598513,1708441911260,-153576.94098308,0.00021,4]
[314598514,1708441929948,-2308.75591,0.00021,4]
[314598515,1708441993661,-2910.55306876,0.00021,4]
[314598516,1708441993703,-43494.79178993,0.00021,4]
[314598517,1708442007582,501.147413,0.0001998,2]
[314598518,1708442009558,223.362631,0.000189,2]
[314598519,1708442027442,-4315.89792745,0.00021,4]
[314598520,1708442027481,-15643.6941011,0.00021,4]
[314598521,1708442048867,-724.510044,0.00021,4]
[314598522,1708442302606,-1000.0,0.00022,22]
[314598523,1708442522507,197.6901,0.00019741,2]
[314598524,1708442575894,1292.78452582,0.00019741,2]
[314598525,1708442580940,4915.3898828,0.00019881,2]
[314598526,1708442595965,1292.78452582,0.00019741,2]
[314598527,1708442611367,407.40110723,0.000189,2]
[314598528,1708442613906,1292.78452582,0.00019741,2]
[314598529,1708442629899,1292.78452582,0.00019741,2]
[314598530,1708442651891,1292.78452582,0.00019741,2]
[314598531,1708442672113,1088.13926332,0.00019741,2]
[314598532,1708442682239,18553.2558515,0.00019969,2]
[314598533,1708442740406,207.401662,0.00019881,2]
[314598594,1708443033006,-155.12099438,0.00020114,2]
[314598596,1708443033016,-703.67102993,0.00020115,2]
[314598598,1708443033027,-289.8323,0.00020116,2]
[314598600,1708443033041,-162.88276984,0.00020151,2]
[314598602,1708443033051,-991.5663774,0.00020386,2]
[314598603,1708443033063,-1110.06482378,0.00020386,2]
[314598605,1708443033075,-2898.36879882,0.00020386,2]
[314598609,1708443033086,-9671.63761418,0.00020386,2]
[314598612,1708443033096,-8458.93096293,0.000205,2]
[314598615,1708443033105,-1020.68403061,0.00021,2]
[314598618,1708443033115,-4150.53216917,0.000214,2]
[314598622,1708443033125,-1000.0,0.000215,2]
[314598624,1708443033138,-200.4151623,0.000215,2]
[314598627,1708443033148,-200.4151623,0.000215,2]
[314598631,1708443033157,-400.5076776,0.000215,2]
[314598635,1708443033168,-11752.84,0.000216,3]
[314598639,1708443033181,-29060.66842209,0.0002161,2]
[314598643,1708443033193,-18839.25476237,0.0002161,2]
[314598648,1708443033204,-209.67,0.00021807,3]
[314598651,1708443033213,-465.09170039,0.00021816,2]
[314598653,1708443033223,-577.44680373,0.00021817,2]